bitfinex/quotes_SOLUSD_20260120
["timestamp","ask_amount","ask_price","bid_price","bid_amount"]
[1768886402063,10.27477291,133.03,132.99,4.36731649]
[1768886402787,2.31856227,133.01,132.97,4.36731649]
[1768886402961,2.31856227,133.0,132.97,4.36731649]
[1768886403159,2.31856227,133.01,132.97,4.36731649]
[1768886403364,2.557588,133.02,132.98,4.36731649]
[1768886403787,10.0752654,133.02,132.98,4.36731649]
[1768886404380,2.31856227,133.01,132.98,4.36731649]
[1768886405169,7.75670313,133.02,132.98,4.36731649]
[1768886405365,2.31856227,133.01,132.98,4.36731649]
[1768886405766,24.43636149,133.03,132.98,4.36731649]
[1768886405966,24.19733576,133.03,132.99,4.36731649]
[1768886406187,2.31856227,133.02,132.99,4.36731649]
[1768886406369,24.19733576,133.03,132.99,4.36731649]
[1768886406571,2.31856227,133.02,132.99,4.36731649]
[1768886406771,16.68,133.03,132.99,4.36731649]
[1768886406978,18.99856227,133.03,132.99,4.36731649]
[1768886407684,0.2,133.03,132.99,4.36731649]
[1768886407870,2.51856227,133.03,132.99,4.36731649]
[1768886408074,2.31856227,133.02,132.99,4.36731649]
[1768886409090,0.43902573,133.03,132.99,4.36731649]
[1768886409386,2.31856227,133.02,132.99,4.36731649]
[1768886409589,2.31856227,133.01,132.98,4.36731649]
[1768886410092,7.95634677,133.03,132.98,4.36731649]
[1768886410284,2.31856227,133.02,132.98,4.36731649]
[1768886410584,7.95634677,133.03,132.99,4.36731649]
[1768886410791,10.27490904,133.03,132.99,4.36731649]
[1768886411281,2.51856227,133.03,132.99,4.36731649]
[1768886411678,0.2,133.03,132.99,4.36731649]
[1768886411872,2.51856227,133.03,132.99,4.36731649]
[1768886413574,2.51856227,133.03,133.0,4.36731649]
[1768886413898,0.23902573,133.0,132.96,4.36731649]
[1768886414198,7.95628381,133.03,132.98,4.36731649]
[1768886414368,2.31856227,133.02,132.98,4.36731649]
[1768886414772,2.31856227,133.02,132.99,4.36731649]
[1768886415586,7.95628381,133.03,132.99,4.36731649]
[1768886415792,2.31856227,133.02,132.99,4.36731649]
[1768886416174,2.31856227,133.0,132.96,4.36731649]
[1768886416373,2.31856227,132.99,132.96,4.36731649]
[1768886417171,0.23902573,133.0,132.96,4.36731649]
[1768886417379,2.557588,133.0,132.96,4.36731649]
[1768886417892,10.07663751,133.0,132.96,4.36731649]
[1768886418083,2.31856227,132.99,132.96,4.36731649]
[1768886418386,2.557588,132.98,132.91,18.80889624]
[1768886418573,2.31856227,132.95,132.92,4.36731649]
[1768886419778,16.48,132.97,132.92,4.36731649]
[1768886419981,2.31856227,132.95,132.92,4.36731649]
[1768886420506,2.31856227,132.94,132.9,4.36731649]
[1768886420692,2.25856228,132.93,132.9,4.36731649]
[1768886420876,2.19856229,132.93,132.9,4.36731649]
[1768886421076,2.31856227,132.93,132.9,4.36731649]
[1768886421478,2.31856227,132.94,132.91,4.36731649]
[1768886422605,2.25856228,132.94,132.91,4.36731649]
[1768886422899,7.52163312,132.95,132.91,4.36731649]
[1768886423197,9.84019539,132.95,132.91,4.36731649]
[1768886423796,2.31856227,132.94,132.91,4.36731649]
[1768886424701,7.70125886,132.95,132.91,4.36731649]
[1768886424893,2.31980862,132.94,132.91,4.36731649]
[1768886425097,2.31980862,132.95,132.92,4.24812712]
[1768886425301,18.79980862,132.97,132.92,4.24812712]
[1768886425781,16.48,132.97,132.92,4.24812712]
[1768886425998,18.79980862,132.97,132.92,4.24812712]
[1768886426174,18.79980862,132.97,132.93,4.24812712]
[1768886426378,2.31980862,132.96,132.93,4.24812712]
[1768886427581,24.00059906,132.97,132.93,4.24812712]
[1768886427780,2.31980862,132.96,132.93,4.24812712]
[1768886429007,16.48,132.97,132.93,4.24812712]
[1768886429201,2.49943436,132.96,132.91,4.24812712]
[1768886429505,0.17962574,132.94,132.88,7.52526146]
[1768886429794,2.31980862,132.93,132.89,4.24812712]
[1768886430001,2.31980862,132.93,132.89,11.77308796]
[1768886430202,0.17962574,132.94,132.9,4.24812712]
[1768886430411,2.31980862,132.93,132.9,4.24812712]
[1768886430586,2.25980863,132.93,132.9,4.24812712]
[1768886431410,2.31980862,132.93,132.9,4.24812712]
[1768886431584,7.70197143,132.94,132.9,4.24812712]
[1768886431784,2.31980862,132.93,132.9,4.24812712]
[1768886432108,7.70197143,132.94,132.9,4.24812712]
[1768886432405,2.31980862,132.93,132.9,4.24812712]
[1768886433708,7.70197143,132.94,132.9,4.24812712]
[1768886434027,2.31980862,132.93,132.9,4.24812712]
[1768886436004,7.70197143,132.94,132.9,4.24812712]
[1768886436189,2.31980862,132.93,132.9,4.24812712]
[1768886436610,2.31980862,132.92,132.9,4.24812712]
[1768886437408,2.31980862,132.93,132.9,4.24812712]
[1768886437820,2.31980862,132.92,132.9,4.24812712]
[1768886438104,2.25980863,132.92,132.9,4.24812712]
[1768886438309,4.22008795,132.91,132.84,18.81898192]
[1768886438506,4.22008795,132.9,132.83,2.31980862]
[1768886438703,26.33170987,132.92,132.85,4.24812712]
[1768886439032,2.31980862,132.89,132.85,4.24812712]
[1768886439208,2.31980862,132.9,132.85,4.24812712]
[1768886441093,7.73154234,132.91,132.85,4.24812712]
[1768886441412,2.31980862,132.89,132.86,4.24812712]
[1768886441708,0.70738452,132.9,132.86,4.24812712]
[1768886441888,2.31980862,132.89,132.86,4.24812712]
[1768886442087,0.20738452,132.9,132.86,4.24812712]
[1768886442291,2.31980862,132.89,132.86,4.24812712]
[1768886442514,0.20738452,132.9,132.86,4.24812712]
[1768886442909,2.31980862,132.89,132.86,4.24812712]
[1768886443424,0.20738452,132.9,132.86,11.77476688]
[1768886443621,2.31980862,132.89,132.86,4.24812712]
[1768886443924,7.73147426,132.91,132.87,4.10640939]
[1768886444100,2.31980862,132.9,132.87,4.10640939]
[1768886444726,2.31980862,132.89,132.87,4.10640939]
[1768886444902,7.73147426,132.91,132.87,4.10640939]
[1768886445112,2.31980862,132.89,132.87,4.10640939]
[1768886446314,7.73147426,132.91,132.87,4.10640939]
[1768886446535,2.31980862,132.89,132.87,4.10640939]
[1768886446813,3.2,132.9,132.87,4.10640939]
[1768886447118,2.31980862,132.89,132.87,4.10640939]
[1768886447416,7.73147426,132.91,132.87,4.10640939]
[1768886447605,6.59253844,132.88,132.82,2.31980862]
[1768886447815,2.31980862,132.86,132.82,7.52864931]
[1768886448011,2.31980862,132.87,132.82,7.52864931]
[1768886448212,2.31980862,132.87,132.82,9.84845793]
[1768886449505,6.59253844,132.86,132.82,11.6350587]
[1768886449702,4.27272982,132.86,132.82,4.10640939]
[1768886450118,20.75272982,132.89,132.84,4.10640939]
[1768886450320,6.59253844,132.89,132.85,4.10640939]
[1768886450711,14.11765209,132.89,132.85,4.10640939]
[1768886451098,11.79784347,132.89,132.85,4.10640939]
[1768886451304,14.11765209,132.89,132.85,4.10640939]
[1768886451602,0.5,132.88,132.85,4.10640939]
[1768886452523,6.59253844,132.89,132.85,4.10640939]
[1768886453322,6.59253844,132.88,132.84,4.10090029]
[1768886453504,2.31980862,132.87,132.84,4.10090029]
[1768886453825,6.59253844,132.88,132.84,4.10090029]
[1768886454426,2.31980862,132.88,132.85,4.10090029]
[1768886454821,6.59253844,132.89,132.85,4.10090029]
[1768886455119,9.84493088,132.89,132.84,9.84751244]
[1768886455324,6.59253844,132.85,132.81,4.10090029]
[1768886455513,2.31980862,132.83,132.81,4.10090029]
[1768886455901,4.27272982,132.84,132.81,4.10090029]
[1768886456106,2.31980862,132.83,132.81,4.10090029]
[1768886456310,2.31980862,132.85,132.81,4.10090029]
[1768886456515,2.31980862,132.84,132.81,4.10090029]
[1768886457023,6.59253844,132.84,132.8,4.10090029]
[1768886457228,2.31980862,132.83,132.8,4.10090029]
[1768886457533,6.59253844,132.84,132.8,4.10090029]
[1768886457730,20.75272982,132.87,132.81,4.10090029]
[1768886457906,6.59253844,132.87,132.82,4.10090029]
[1768886458105,4.27272982,132.87,132.82,4.10090029]
[1768886458306,6.59253844,132.87,132.82,4.10090029]
[1768886458726,14.11877403,132.87,132.82,4.10090029]
[1768886458929,2.31980862,132.86,132.82,4.10090029]
[1768886459234,4.27272982,132.87,132.84,4.10090029]
[1768886459422,23.07253844,132.89,132.85,4.10090029]
[1768886459618,20.75272982,132.89,132.85,4.10090029]
[1768886459819,23.07253844,132.89,132.85,4.10090029]
[1768886460018,0.5,132.88,132.85,4.10090029]
[1768886460231,0.5,132.88,132.85,6.42070891]
[1768886460432,0.5,132.88,132.86,4.10090029]
[1768886461114,23.07253844,132.89,132.86,4.10090029]
[1768886461326,23.07253844,132.89,132.85,4.10090029]
[1768886461557,23.07253844,132.89,132.85,6.42070891]
[1768886462136,23.07253844,132.89,132.85,4.10090029]
[1768886462320,23.07253844,132.89,132.85,6.42070891]
[1768886462916,23.07253844,132.89,132.85,13.94792553]
[1768886463122,20.75272982,132.89,132.85,13.94792553]
[1768886463553,20.75272982,132.89,132.86,4.10090029]
[1768886464442,2.36253592,132.88,132.84,11.6285213]
[1768886464630,6.59253844,132.87,132.83,6.42070891]
[1768886464939,4.27272982,132.86,132.83,4.10090029]
[1768886465735,4.27272982,132.88,132.83,11.62930784]
[1768886466040,6.59253844,132.88,132.83,13.94911646]
[1768886466533,6.59253844,132.88,132.83,11.62930784]
[1768886466740,4.27272982,132.87,132.83,13.94911646]
[1768886467637,6.59253844,132.87,132.83,6.42070891]
[1768886467836,4.27272982,132.86,132.82,11.62964789]
[1768886468020,4.27272982,132.86,132.83,2.31980862]
[1768886468333,4.27272982,132.84,132.81,4.10090029]
[1768886468521,6.59253844,132.84,132.81,4.10090029]
[1768886469331,6.59253844,132.85,132.81,4.10090029]
[1768886469520,11.79833618,132.88,132.84,4.10090029]
[1768886469725,14.1181448,132.88,132.84,4.10090029]
[1768886470026,0.5,132.87,132.84,4.10090029]
[1768886470229,2.81980862,132.87,132.84,4.10090029]
[1768886470416,7.09253844,132.87,132.84,4.10090029]
[1768886471318,4.77272982,132.87,132.84,4.10090029]
[1768886471519,4.77272982,132.87,132.83,4.10090029]
[1768886471520,7.09253844,132.87,132.83,4.10090029]
[1768886472539,2.31980862,132.86,132.83,4.10090029]
[1768886472747,6.59253844,132.85,132.81,4.10090029]
[1768886474743,14.11997804,132.85,132.81,4.10090029]
[1768886475038,2.31980862,132.84,132.81,4.10090029]
[1768886475340,11.80016942,132.85,132.81,4.10090029]
[1768886475549,2.31980862,132.84,132.81,4.10090029]
[1768886475729,2.81980862,132.84,132.81,4.10090029]
[1768886476445,0.5,132.84,132.81,4.10090029]
[1768886477245,14.11984845,132.85,132.81,4.10090029]
[1768886478544,11.80003983,132.85,132.81,4.10090029]
[1768886478751,4.27272982,132.87,132.83,2.31980862]
[1768886478926,4.27272982,132.87,132.84,4.10090029]
[1768886479244,4.27272982,132.88,132.84,4.10090029]
[1768886479640,14.11843052,132.88,132.84,4.10090029]
[1768886480525,11.79791961,132.89,132.82,4.10090029]
[1768886480725,11.79847678,132.88,132.84,6.42070891]
[1768886480933,11.79847678,132.88,132.84,4.10090029]
[1768886481133,12.79847678,132.88,132.84,4.10090029]
[1768886481648,8.52574696,132.88,132.84,4.10090029]
[1768886481850,12.79847678,132.88,132.84,4.10090029]
[1768886482751,1.0,132.88,132.84,2.31980862]
[1768886482946,14.11777798,132.89,132.85,4.10090029]
[1768886483247,11.79796936,132.89,132.85,4.10090029]
[1768886483624,14.11777798,132.89,132.85,4.10090029]
[1768886483828,11.79796936,132.89,132.85,4.10090029]
[1768886484131,14.11777798,132.89,132.85,4.10090029]
[1768886484742,14.11777798,132.89,132.85,4.07090029]
[1768886485057,11.79796936,132.89,132.85,4.07090029]
[1768886485351,14.11777798,132.89,132.85,4.07090029]
[1768886485955,9.84504816,132.89,132.85,4.07090029]
[1768886486253,14.10005362,132.89,132.85,4.07090029]
[1768886486557,0.5,132.88,132.85,4.07090029]
[1768886487951,4.75500546,132.88,132.85,4.07090029]
[1768886488453,0.5,132.88,132.85,4.07090029]
[1768886495955,0.5,132.88,132.86,4.22859452]
[1768886496257,0.5,132.88,132.86,6.55037665]
[1768886496441,4.25500546,132.92,132.88,4.22859452]
[1768886496765,14.10031018,132.92,132.88,4.22859452]
[1768886498355,9.84530472,132.92,132.88,4.22859452]
[1768886498963,11.77800646,132.93,132.88,4.22859452]
[1768886499263,2.32178213,132.91,132.88,4.22859452]
[1768886499653,6.57678759,132.92,132.88,4.22859452]
[1768886500258,2.32178213,132.91,132.88,4.22859452]
[1768886501060,2.32178213,132.9,132.88,4.22859452]
[1768886501749,2.32178213,132.91,132.88,4.22859452]
[1768886502961,9.84572524,132.91,132.88,4.22859452]
[1768886503165,9.84572524,132.91,132.88,4.19859452]
[1768886503365,7.52394311,132.91,132.88,4.19859452]
[1768886503664,9.84572524,132.91,132.88,4.19859452]
[1768886505264,14.32297297,132.91,132.88,4.19859452]
[1768886505450,6.79902986,132.92,132.88,4.19859452]
[1768886506149,28.47970084,132.94,132.89,4.13237779]
[1768886506467,4.47724773,132.93,132.89,4.13237779]
[1768886507964,4.47724773,132.93,132.89,7.52482878]
[1768886508157,4.47724773,132.93,132.9,4.13237779]
[1768886509170,0.5,132.92,132.9,4.13237779]
[1768886511170,0.5,132.92,132.89,4.13237779]
[1768886511476,0.5,132.92,132.89,4.10237779]
[1768886511771,0.5,132.92,132.89,2.32178213]
[1768886513474,0.5,132.92,132.9,4.29700387]
[1768886514088,30.77376335,132.95,132.91,4.29700387]
[1768886514264,28.45198122,132.95,132.92,4.29700387]
[1768886514574,28.45198122,132.95,132.92,4.23700387]
[1768886515174,11.97198122,132.95,132.92,4.23700387]
[1768886516362,2.32178213,132.96,132.92,4.23700387]
[1768886516363,6.77191994,132.96,132.92,4.23700387]
[1768886517972,2.32178213,132.95,132.92,4.20700387]
[1768886518881,11.97133256,132.96,132.92,4.20700387]
[1768886519180,2.32178213,132.95,132.92,4.20700387]
[1768886519359,6.77191994,132.95,132.92,4.20700387]
[1768886519780,4.45013781,132.95,132.92,4.20700387]
[1768886519977,20.93013781,132.98,132.93,4.29700387]
[1768886520283,4.45013781,132.97,132.94,4.29700387]
[1768886520461,14.29229015,132.98,132.94,6.618786]
[1768886520776,14.29229015,132.98,132.95,4.29700387]
[1768886521164,4.45013781,132.98,132.95,4.29700387]
[1768886521554,11.97010835,132.98,132.95,4.29700387]
[1768886524262,14.29189048,132.98,132.95,4.29700387]
[1768886524883,6.77191994,132.97,132.94,4.29700387]
[1768886525478,4.45013781,132.96,132.92,4.29700387]
[1768886525685,6.77191994,132.95,132.91,4.29700387]
[1768886526286,6.77191994,132.95,132.91,11.82085361]
[1768886526484,4.45013781,132.96,132.93,4.29700387]
[1768886526664,28.45072815,132.97,132.93,4.26700387]
[1768886526864,4.45013781,132.96,132.93,4.26700387]
[1768886527065,30.77251028,132.97,132.93,4.26700387]
[1768886527370,28.45072815,132.97,132.93,4.26700387]
[1768886527573,30.77251028,132.97,132.93,4.26700387]
[1768886527878,14.29251028,132.97,132.93,4.26700387]
[1768886528261,11.97072815,132.97,132.93,4.26700387]
[1768886528474,11.97072815,132.97,132.93,6.588786]
[1768886528678,11.97072815,132.97,132.94,4.29700387]
[1768886529285,6.77191994,132.98,132.94,4.29700387]
[1768886530882,6.77191994,132.97,132.94,4.29700387]
[1768886531268,4.45013781,132.97,132.94,4.29700387]
[1768886531469,6.77191994,132.97,132.94,4.29700387]
[1768886532788,4.45013781,132.97,132.94,4.29700387]
[1768886533081,11.97093682,132.97,132.92,9.84487486]
[1768886533386,11.97093682,132.97,132.91,61.5]
[1768886533387,4.45013781,132.96,132.91,71.34543947]
[1768886533588,4.45013781,132.96,132.91,9.84543947]
[1768886533889,4.45013781,132.96,132.91,7.52365734]
[1768886534102,4.45013781,132.96,132.91,9.84543947]
[1768886534388,6.77191994,132.96,132.91,9.84543947]
[1768886535094,6.77191994,132.96,132.92,4.29700387]
[1768886536578,4.45013781,132.96,132.92,4.29700387]
[1768886537089,6.77191994,132.96,132.92,4.29700387]
[1768886537290,14.29302615,132.96,132.92,4.29700387]
[1768886537986,11.97124402,132.96,132.92,4.29700387]
[1768886538185,14.29302615,132.96,132.92,4.29700387]
[1768886538790,4.45013781,132.96,132.92,4.29700387]
[1768886538980,6.77191994,132.96,132.92,4.29700387]
[1768886539180,14.2930347,132.96,132.92,4.29700387]
[1768886540982,6.77191994,132.96,132.92,4.29700387]
[1768886541791,4.45013781,132.94,132.91,4.29700387]
[1768886541990,2.32178213,132.93,132.9,4.29700387]
[1768886542292,6.77191994,132.94,132.9,4.29700387]
[1768886543295,14.294192,132.94,132.9,4.29700387]
[1768886544501,4.06719403,132.93,132.9,4.29700387]
[1768886545098,6.38897616,132.93,132.9,4.29700387]
[1768886545500,4.06719403,132.93,132.9,4.29700387]
[1768886545706,6.38897616,132.92,132.89,4.32904553]
[1768886546669,13.91197416,132.93,132.89,4.32904553]
[1768886546898,13.91067149,132.93,132.89,4.32904553]
[1768886547899,11.59019203,132.93,132.89,4.32904553]
[1768886548103,13.91067149,132.93,132.89,4.32904553]
[1768886548280,11.59019203,132.93,132.89,4.32904553]
[1768886548485,13.91067149,132.93,132.89,4.32904553]
[1768886550002,6.38767349,132.93,132.89,11.85405541]
[1768886550317,4.06719403,132.93,132.9,4.32904553]
[1768886550803,2.32047946,132.94,132.9,4.32904553]
[1768886551594,6.38767349,132.94,132.9,4.32904553]
[1768886553004,13.90992426,132.94,132.9,4.32904553]
[1768886554190,2.32047946,132.93,132.9,4.32904553]
[1768886554713,11.5894448,132.94,132.9,4.32904553]
[1768886554900,2.32047946,132.93,132.9,4.32904553]
[1768886555086,6.73394264,132.93,132.9,4.32904553]
[1768886557512,4.41346318,132.93,132.9,4.32904553]
[1768886557805,6.73394264,132.93,132.9,4.32904553]
[1768886558909,14.2567752,132.93,132.9,4.32904553]
[1768886559292,2.32047946,132.93,132.9,4.32904553]
[1768886559610,14.25639312,132.94,132.9,4.32904553]
[1768886562008,4.41346318,132.92,132.89,4.14645515]
[1768886562198,2.32047946,132.91,132.87,4.10888593]
[1768886562593,4.10191264,132.91,132.88,4.10888593]
[1768886562908,6.4223921,132.91,132.88,4.10888593]
[1768886564309,13.94678271,132.91,132.88,4.10888593]
[1768886572890,11.62630325,132.91,132.88,4.10888593]
[1768886573211,13.94678271,132.91,132.88,4.10888593]
[1768886574913,11.62630325,132.91,132.88,4.10888593]
[1768886575119,13.94678271,132.91,132.88,4.10888593]
[1768886578141,11.69074698,132.92,132.88,4.10888593]
[1768886578312,2.32047946,132.91,132.88,4.10888593]
[1768886578512,6.48790415,132.91,132.88,4.10888593]
[1768886578735,4.16742469,132.91,132.88,4.10888593]
[1768886579018,6.42790416,132.91,132.88,4.10888593]
[1768886579639,13.95205701,132.91,132.88,4.10888593]
[1768886580147,7.52415285,132.91,132.88,4.10888593]
[1768886580438,2.32047946,132.92,132.88,4.10888593]
[1768886581040,6.48790415,132.92,132.88,4.10888593]
[1768886581337,4.16742469,132.92,132.88,4.10888593]
[1768886581658,30.49075057,132.93,132.89,4.47904758]
[1768886582239,6.48790415,132.92,132.89,4.47904758]
[1768886582441,6.48790415,132.92,132.87,4.47904758]
[1768886583235,6.48790415,132.92,132.88,4.47904758]
[1768886584537,7.52226321,132.94,132.9,4.47904758]
[1768886584744,9.84274267,132.94,132.9,4.47904758]
[1768886587240,30.48963003,132.95,132.91,4.47904758]
[1768886587647,26.32220534,132.95,132.91,4.47904758]
[1768886587823,6.48790415,132.97,132.93,4.47904758]
[1768886588025,6.48790415,132.96,132.93,4.47904758]
[1768886588822,6.48790415,132.96,132.91,9.84421978]
[1768886588823,4.16742469,133.0,132.96,4.47904758]
[1768886589031,4.16742469,133.0,132.97,4.47904758]
[1768886589231,6.48790415,133.0,132.97,4.47904758]
[1768886589439,4.16742469,133.0,132.97,4.47904758]
[1768886590245,6.48790415,133.0,132.97,4.47904758]
[1768886590438,4.16742469,133.0,132.97,4.47904758]
[1768886593551,14.00684412,133.0,132.96,4.47904758]
[1768886594252,6.48790415,133.0,132.96,4.47904758]
[1768886594549,4.16742469,133.0,132.96,4.47904758]
[1768886595529,4.16742469,133.0,132.97,4.47904758]
[1768886596235,14.00686604,133.0,132.97,4.47904758]
[1768886596550,4.16742469,132.99,132.96,4.47904758]
[1768886597352,4.16742469,133.0,132.96,4.47904758]
[1768886597539,4.16742469,133.0,132.97,4.47904758]
[1768886598250,6.48790415,133.0,132.97,4.47904758]
[1768886598635,4.16742469,132.97,132.94,4.47904758]
[1768886598847,4.16742469,132.98,132.94,4.47904758]
[1768886599456,9.84030541,132.99,132.95,4.47904758]
[1768886599631,14.0077301,132.99,132.95,4.47904758]
[1768886600147,11.68725064,132.99,132.95,4.47904758]
[1768886600450,4.16742469,132.99,132.95,4.47904758]
[1768886600648,26.31949433,133.0,132.95,6.79952704]
[1768886600854,26.31949433,133.0,132.96,4.47904758]
[1768886600855,23.99901487,133.0,132.96,4.47904758]
[1768886601037,28.16643956,133.0,132.96,4.47904758]
[1768886601737,11.68643956,133.0,132.96,4.47904758]
[1768886602144,14.00691902,133.0,132.96,4.47904758]
[1768886603953,4.16742469,133.0,132.97,6.4355999]
[1768886604340,4.16742469,133.0,132.97,4.11512044]
[1768886604540,0.2,133.01,132.98,4.11512044]
[1768886606457,4.39173608,133.01,132.98,4.11512044]
[1768886607756,0.2,133.01,132.98,4.11512044]
[1768886607940,0.2,133.03,133.0,4.11512044]
[1768886608141,4.39173608,133.03,133.0,4.08512044]
[1768886608342,11.90884379,133.03,133.0,4.08512044]
[1768886608739,4.39173608,133.03,133.0,4.08512044]
[1768886609464,14.22538002,133.03,133.0,4.08512044]
[1768886609659,4.19173608,133.02,132.97,7.52027233]
[1768886609843,4.19173608,133.0,132.95,7.52113666]
[1768886610042,4.19173608,133.0,132.96,6.43157376]
[1768886610255,4.19173608,133.0,132.97,4.11512044]
[1768886610964,4.19173608,132.98,132.94,7.52202557]
[1768886611153,4.39173608,133.03,132.98,3.27411128]
[1768886611459,4.39173608,133.03,133.0,3.27411128]
[1768886611765,0.2,133.03,133.0,3.27411128]
[1768886612857,4.39173608,133.03,133.0,3.27411128]
[1768886613365,4.19173608,133.02,132.98,3.27411128]
[1768886614564,0.2,133.03,132.99,3.27411128]
[1768886614746,4.39173608,133.03,133.0,3.27411128]
[1768886615847,4.39173608,133.03,132.99,3.27411128]
[1768886616144,4.19173608,133.02,132.97,13.11086192]
[1768886617563,4.19173608,133.02,132.97,9.83675064]
[1768886617769,4.19173608,133.02,132.98,3.27411128]
[1768886619369,4.19173608,133.02,132.98,10.79401307]
[1768886619559,4.19173608,133.02,132.98,7.51990179]
[1768886619749,4.19173608,133.02,132.99,3.27411128]
[1768886620465,0.2,133.03,132.99,3.27411128]
[1768886620669,11.90888933,133.03,132.98,10.79401307]
[1768886620865,4.19173608,133.01,132.98,3.27411128]
[1768886623773,4.19173608,133.01,132.98,3.24411128]
[1768886624070,4.21810027,132.99,132.95,7.5212931]
[1768886624447,4.21810027,132.99,132.94,7.52204693]
[1768886625159,4.21810027,132.98,132.94,7.52204693]
[1768886625662,4.21810027,132.98,132.95,7.52156214]
[1768886625851,4.21810027,133.0,132.95,10.76567342]
[1768886626060,4.21810027,132.99,132.95,10.76567342]
[1768886626653,4.21810027,132.99,132.95,3.24411128]
[1768886627490,6.53455359,132.99,132.95,3.24411128]
[1768886628078,4.21810027,132.99,132.95,3.24411128]
[1768886628270,4.21810027,132.98,132.94,10.7660488]
[1768886630089,4.21810027,132.98,132.91,3.24411128]
[1768886630090,2.31645332,132.95,132.91,3.24411128]
[1768886630372,2.31645332,132.93,132.88,3.24411128]
[1768886630588,16.48,132.95,132.88,3.24411128]
[1768886630769,2.31645332,132.94,132.9,7.52410899]
[1768886630959,2.31645332,132.94,132.9,10.82822026]
[1768886632076,24.00182976,132.95,132.9,10.82822026]
[1768886632377,6.53455359,132.94,132.9,10.82822026]
[1768886633980,6.53455359,132.94,132.9,3.30411127]
[1768886634277,4.24041879,132.93,132.9,3.30411127]
[1768886634480,6.49687212,132.93,132.9,3.30411127]
[1768886636478,4.1804188,132.93,132.9,3.30411127]
[1768886636677,6.49687212,132.93,132.9,3.30411127]
[1768886637159,4.1804188,132.93,132.9,3.30411127]
[1768886640484,4.12041881,132.93,132.9,10.82836576]
[1768886640988,6.43687213,132.93,132.9,3.30411127]
[1768886643583,4.12041881,132.93,132.9,3.30411127]
[1768886643887,6.43687213,132.93,132.9,3.30411127]
[1768886644587,4.12041881,132.93,132.9,3.30411127]
[1768886644789,6.43687213,132.93,132.9,3.30411127]
[1768886646192,4.12041881,132.93,132.9,3.30411127]
[1768886646492,6.43687213,132.93,132.9,3.30411127]
[1768886647365,4.12041881,132.93,132.9,10.82851922]
[1768886648475,4.12041881,132.93,132.9,3.30411127]
[1768886649788,6.55687211,132.94,132.91,3.42411125]
[1768886649975,4.24041879,132.94,132.91,3.42411125]
[1768886656594,4.24041879,132.94,132.91,10.94775129]
[1768886657001,4.24041879,132.94,132.91,3.42411125]
[1768886657601,4.24041879,132.94,132.9,10.94830233]
[1768886657772,4.24041879,132.94,132.9,7.52419108]
[1768886657979,20.72041879,132.95,132.92,3.42411125]
[1768886658179,7.52127739,132.96,132.93,3.42411125]
[1768886658180,4.24041879,132.96,132.93,3.42411125]
[1768886659996,4.24041879,132.96,132.92,10.9469789]
[1768886665202,4.24041879,132.96,132.93,3.42411125]
[1768886668081,6.45575523,132.97,132.93,3.42411125]
[1768886668284,20.61930191,132.98,132.94,3.42411125]
[1768886668488,4.13930191,132.98,132.94,3.42411125]
[1768886668804,4.13930191,132.98,132.95,3.42411125]
[1768886673007,4.13930191,132.98,132.95,10.94571147]
[1768886673215,4.13930191,133.0,132.97,3.42411125]
[1768886673906,4.13930191,133.0,132.95,9.83969346]
[1768886673907,4.13930191,132.98,132.95,10.94571147]
[1768886674097,6.45739515,132.98,132.95,10.94571147]
[1768886674296,6.45739515,132.98,132.95,3.42411125]
[1768886674488,4.13930191,132.98,132.95,10.94568732]
[1768886675809,4.13930191,132.99,132.95,10.94568732]
[1768886676713,4.13930191,132.99,132.96,3.42411125]
[1768886677124,6.39739516,132.99,132.95,3.48411124]
[1768886677308,2.31809324,132.99,132.95,3.48411124]
[1768886677492,2.31809324,132.99,132.95,11.00554828]
[1768886677907,2.31809324,132.99,132.95,7.52143704]
[1768886678216,7.51879704,133.0,132.95,7.52143704]
[1768886678414,2.31809324,132.99,132.95,7.52143704]
[1768886678715,23.99846482,133.01,132.95,11.00554828]
[1768886678901,2.31809324,132.99,132.95,11.00554828]
[1768886679108,4.13930191,132.98,132.95,11.00554828]
[1768886681024,4.13930191,132.97,132.94,11.00606674]
[1768886681231,4.13930191,132.97,132.92,67.30220448]
[1768886681598,4.13930191,132.96,132.92,72.50700007]
[1768886682397,4.13930191,132.96,132.93,7.52249576]
[1768886685122,4.13930191,132.96,132.92,11.00719843]
[1768886686222,4.13930191,132.96,132.93,3.48411124]
[1768886687214,4.13930191,132.96,132.93,11.00680568]
[1768886687411,4.34779264,132.97,132.94,3.48411124]
[1768886689235,4.34779264,132.99,132.96,3.48411124]
[1768886689411,4.34779264,132.99,132.95,3.48411124]
[1768886690613,4.28779265,132.99,132.96,3.48411124]
[1768886692236,9.83747718,132.99,132.94,11.06604704]
[1768886692632,4.34779264,132.97,132.94,11.06604704]
[1768886692824,4.28779265,132.97,132.94,11.06604704]
[1768886693019,2.31809324,132.99,132.95,3.60411122]
[1768886694741,4.06429147,132.98,132.95,3.60411122]
[1768886698744,4.00429148,132.98,132.95,3.60411122]
[1768886702047,4.00429148,132.98,132.95,11.12562965]
[1768886702241,4.06429147,132.99,132.96,3.66411121]
[1768886702650,4.06429147,133.0,132.97,3.66411121]